Cogmind - Beta 14 @@@ ROGUE MODE // 2024.08.26 @ 16:28:39 Player: Gilvian Result: Destroyed by Y-45 Defender with Heavy Assault Rifle Performance ------------- Evolutions (0) 0 Regions Visited (2) 400 Robots Destroyed (21) 105 Value Destroyed (586) 586 Prototype IDs (3) 60 Alien Tech Used (0) 0 Bonus (0) 0 TOTAL SCORE: 1151 Bonus ------- None Cogmind --------- Core Integrity 0/250 Matter 260/300 Energy 114/125 System Corruption 0% Temperature Cool (9) Movement Treading (260) Ox1 Location -10/Subcaves Parts ------- > --- POWER (1) -------- Light Ion Engine > --- PROPULSION (2) --- Spiked Treads > --- UTILITY (2) ------ Large Storage Unit Structural Scanner > --- WEAPON (2) ------- Small Laser Enhanced Flamer > --- INVENTORY (15) --- Small Storage Unit Small Laser Peak State ------------ > --- POWER ------------ Light Ion Engine > --- PROPULSION ------- Spiked Treads > --- UTILITY ---------- Large Storage Unit Structural Scanner > --- WEAPON ----------- Small Laser Enhanced Flamer > --- INVENTORY -------- Small Storage Unit Small Laser [Rating: 9] Favorites ----------- Power Light Ion Engine Engine Light Ion Engine Propulsion Light Treads Treads Light Treads Utility Large Storage Unit Device Structural Scanner Storage Large Storage Unit Weapon Grenade Launcher Energy Gun Particle Gun Launcher Grenade Launcher Special Weapon Enhanced Flamer Build | -11 -10 -10 ------- Run | Yrd Mat Sub Slots Evolved . | . . . Power . | . . . Propulsion . | . . . Utility . | . . . Weapon . | . . . Parts Attached 15 | 6 5 4 Power 1 | 1 . . Engine 1 | 1 . . Core . | . . . Reactor . | . . . Propulsion 3 | 2 . 1 Treads 3 | 2 . 1 Leg . | . . . Wheel . | . . . Hover . | . . . Flight . | . . . Utility 3 | 1 2 . Device 1 | . 1 . Storage 2 | 1 1 . Processor . | . . . Hackware . | . . . Protection . | . . . Artifact . | . . . Weapon 8 | 2 3 3 Energy Gun 6 | 2 2 2 Energy Cannon . | . . . Ballistic Gun . | . . . Ballistic Cannon . | . . . Launcher 1 | . 1 . Special Weapon 1 | . . 1 Impact Weapon . | . . . Slashing Weapon . | . . . Piercing Weapon . | . . . Special Melee Weapon . | . . . Unidentified Prototypes . | . . . Parts Lost 5 | . 1 4 Power . | . . . Propulsion 2 | . . 2 Utility . | . . . Weapon 3 | . 1 2 Highest Loss Streak 2 | . 1 2 To Critical Strikes . | . . . Average Slot Usage (%) 83 | . 92 78 Engine 14 | . 14 14 Treads 17 | . 28 11 Device 11 | . 6 14 Storage 14 | . 14 14 Energy Gun 16 | . 16 17 Launcher 8 | . 11 6 Peak Build Rating 9 | 6 8 9 Average Rating 6 | 3 6 6 On Entrance 4 | . 6 8 Naked Turns . | . . . Heaviest Build 30 | 10 30 30 Greatest Support 40 | 40 40 40 Greatest Overweight (x) 8 | . . 8 Average Overweight (x) . | . . 1 Largest Inventory Capacity 15 | 8 15 15 Average Capacity 14 | 6 14 15 Most Carried 5 | 5 5 3 Average Carried 2 | 1 3 2 Final Capacity 15 | 8 15 15 Final Carried 3 | . 3 2 Class Distribution -------------------- 100% | Mutant Dominant Class ---------------- Mutant | -10/Materials Mutant | -10/Subcaves Resources | -11 -10 -10 ----------- Run | Yrd Mat Sub Matter Collected 515 | 260 225 30 Remotely . | . . . Salvage Created 435 | . 386 49 Parts 41 | . 36 5 Haulers Intercepted 1 | . 1 . Recyclers Shooed . | . . . Parts Field Recycled . | . . . Retrieved Matter . | . . . Parts Self-Destructed 2 | . . 2 Prevented . | . . . Kills | -11 -10 -10 ------- Run | Yrd Mat Sub Combat Hostiles Destroyed 14 | . 12 2 Guns 2 | . 2 . AOE 12 | . 10 2 Classes Destroyed 7 | . 7 . Worker 2 | . 2 . Builder 2 | . 2 . Hauler 1 | . 1 . Watcher 2 | . 2 . Swarmer 3 | . 3 . Grunt 6 | . 6 . Subdweller 5 | . 3 2 Best Kill Streak 7 | . 7 2 Combat Bots Only 4 | . 4 2 Max Kills in Single Turn 2 | . 2 1 Gunslinging . | . . . Exploded 1 | . 1 1 Melee . | . . . Uniques/NPCs Destroyed . | . . . Combat | -11 -10 -10 -------- Run | Yrd Mat Sub Hostile Shots Fired 47 | . 25 22 Missed 14 | . 7 7 Damage Taken 875 | . 411 464 Core 250 | . 142 108 Absorbed by Shields . | . . . Core Remaining (%) 100 | 100 . . Volleys Fired 38 | . 27 11 Largest 2 | . 1 2 Hottest 80 | . 50 80 Shots Fired 40 | . 27 13 Gun 16 | . 9 7 Cannon . | . . . Launcher 22 | . 18 4 Special 2 | . . 2 Kinetic . | . . . Thermal 18 | . 9 9 Explosive 22 | . 18 4 Electromagnetic . | . . . Robot Hit Streak 11 | . 6 11 Robot Miss Streak 2 | . 2 1 Penetration Max . | . . . Secondary Targets . | . . . Shots Hit Robots 28 | . 17 11 Core Hits 35 | . 31 4 Critical Kills . | . . . Critical Parts Destroyed . | . . . Critical Strikes 2 | . 2 . Burn 2 | . 2 . Melee Attacks . | . . . Impact . | . . . Slashing . | . . . Piercing . | . . . Sneak Attacks . | . . . Combat Hostiles . | . . . Follow-up Attacks . | . . . Damage Inflicted 1443 | . 1085 358 Guns 142 | . 51 91 Cannons . | . . . Explosions 1289 | . 1034 255 Melee . | . . . Ramming . | . . . Kinetic . | . . . Thermal 154 | . 51 103 Explosive 1263 | . 1008 255 Electromagnetic 26 | . 26 . Impact . | . . . Slashing . | . . . Piercing . | . . . Highest Corruption . | . . . Average Corruption . | . . . Corruption Purged . | . . . Corruption Blocked . | . . . Overload Shots . | . . . Overflow Damage . | . . . Projectiles . | . . . Explosions . | . . . Melee . | . . . Knockbacks . | . . . Impact . | . . . Kinetic . | . . . Secondary . | . . . Self-Inflicted Damage 278 | . 184 94 Shots 12 | . 9 3 Rammed . | . . . Targets Rammed . | . . . Kicked . | . . . Crushed . | . . . Highest Temperature 60 | . 60 9 Average Temperature 15 | . 16 3 Received Heat Transfer 162 | . 72 90 Siege Activations . | . . . Robots Corrupted . | . . . Combat Hostiles . | . . . Parts Fried . | . . . Impact Corruptions . | . . . Robots Melted . | . . . Combat Hostiles . | . . . Parts Melted . | . . . Heat Transferred 587 | . 296 291 Parts Sabotaged . | . . . Parts Stolen . | . . . Parts Stripped . | . . . Power Chain Reactions . | . . . Alert | -11 -10 -10 ------- Run | Yrd Mat Sub Peak Influence 296 | . 296 . Initial . | . . . Average 162 | . 170 . Maximum Alert Level 1 | . 1 . Low Security (%) 53 | 100 50 . Level 1 46 | . 49 . Level 2 . | . . . Level 3 . | . . . Level 4 . | . . . Level 5 . | . . . High Security . | . . . Max Security . | . . . Squads Dispatched 1 | . 1 . Investigation . | . . . Extermination . | . . . Reinforcement 1 | . 1 . Assault . | . . . Garrison . | . . . Intercept . | . . . Searches Triggered . | . . . Construction Impeded . | . . . Haulers Reinforced . | . . . Active Scanning Responses . | . . . Cargo Convoy Interrupts . | . . . Stealth | -11 -10 -10 --------- Run | Yrd Mat Sub Distress Signals 1 | . 1 . Communications Jammed . | . . . Distress Signals . | . . . Times Spotted 19 | . 15 4 Peak Tracking Total 4 | . 4 2 Tactical Retreats 2 | . 2 . Traps | -11 -10 -10 ------- Run | Yrd Mat Sub Traps Triggered 1 | . . 1 Indirectly . | . . . Trap Hack Attempts . | . . . Triggered . | . . . Disarmed . | . . . Reprogrammed . | . . . Reused . | . . . Traps Extracted . | . . . Installed . | . . . Triggered . | . . . Machines | -11 -10 -10 ---------- Run | Yrd Mat Sub Machines Disabled 8 | . 8 . Max in Single Turn 3 | . 3 . Machines Repaired . | . . . Machines Dismantled . | . . . Machines Sabotaged . | . . . Overloaded Fab Kills . | . . . Hacking | -11 -10 -10 --------- Run | Yrd Mat Sub Machines Accessed 4 | . 3 1 Terminals 2 | . 2 . Fabricators . | . . . Repair Stations . | . . . Recycling Units 1 | . 1 . Scanalyzers . | . . . Garrison Access . | . . . Total Hacks 9 | . 5 4 Successful 7 | . 3 4 Failed 2 | . 2 . Catastrophic . | . . . Database Lockouts . | . . . Manual . | . . . Terminals 4 | . 4 . Fabricators . | . . . Repair Stations . | . . . Recycling Units 1 | . 1 . Scanalyzers . | . . . Garrison Access . | . . . Terminal Hacks 7 | . 3 4 Record 5 | . 1 4 Prototype ID Bank 2 | . 2 . Fabricator Hacks . | . . . Repair Station Hacks . | . . . Recycling Unit Hacks . | . . . Scanalyzer . | . . . Garrison Access Hacks . | . . . Unauthorized Hacks . | . . . Terminals . | . . . Fabricators . | . . . Repair Stations . | . . . Recycling Units . | . . . Scanalyzers . | . . . Garrison Access . | . . . Data Cores Recovered . | . . . Used . | . . . Hacking Detections 2 | . 2 . Full Trace Events . | . . . Feedback Events . | . . . Feedback Blocked . | . . . Robot Schematics Acquired . | . . . Robots Built . | . . . Authchips . | . . . Time . | . . . Total Robot Build Rating . | . . . Part Schematics Acquired . | . . . Parts Built . | . . . Authchips . | . . . Time . | . . . Total Part Build Rating . | . . . Parts Repaired . | . . . Time . | . . . Parts Recycled . | . . . Recycled Matter . | . . . Retrieved Matter . | . . . Retrieved Components . | . . . Parts Scanalyzed . | . . . Part Schematics Acquired . | . . . Parts Damaged . | . . . Bothacking | -11 -10 -10 ------------ Run | Yrd Mat Sub Used RIF Installer . | . . . Robots Hacked . | . . . Non-combat . | . . . Combat . | . . . Robot Hacks Applied . | . . . Relay Couplers Released . | . . . Fabnet Peak Effective % . | . . . Robots Rewired . | . . . Allies Hacked . | . . . Hacks Repelled . | . . . Allies | -11 -10 -10 -------- Run | Yrd Mat Sub Total Allies . | . . . Largest Group . | . . . Highest-Rated Group . | . . . Highest-Rated Ally . | . . . Total Orders . | . . . Ally Attacks . | . . . Total Damage . | . . . Kills . | . . . Allies Corrupted . | . . . Allies Melted . | . . . Intel | -11 -10 -10 ------- Run | Yrd Mat Sub Robot Analysis Total . | . . . Derelict Logs Recovered 1 | . . 1 Drone Launches . | . . . Drone Recoveries . | . . . Exploration | -11 -10 -10 ------------- Run | Yrd Mat Sub Turns Passed 2792 | 48 962 1782 Spaces Moved 1233 | 37 527 669 Core 90 | 20 . 70 Treads 1143 | 17 527 599 Legs . | . . . Wheels . | . . . Hover . | . . . Flight . | . . . Fastest Speed 50 | 50 160 160 Average Speed 212 | 100 160 259 Slowest Speed 450 | 160 160 450 Overloaded Moves . | . . . Propulsion Burnouts . | . . . Robots Hopped . | . . . Cave-ins Triggered . | . . . Exploration Rate (%) 44 | 4 81 49 Regions Visited 2 Branch Regions 1 Pre-discovered Areas 1 | . . 1 Known Exits Taken . | . . . Unknown Exits Taken 2 | 1 1 . Scrap Searched . | . . . Spaces Dug . | . . . Terrain Destroyed 124 | . 113 11 Melee . | . . . Projectile . | . . . AOE 124 | . 113 11 Terrain Rammed . | . . . Walls Destroyed . | . . . Machines Disabled . | . . . Actions | -11 -10 -10 --------- Run | Yrd Mat Sub Total 1359 | 47 617 695 Wait 63 | . 54 9 Move 1231 | 36 526 669 Hop . | . . . Pick Up 12 | 5 5 2 Fast Attach 1 | 1 . . Attach 10 | 5 2 3 Detach . | . . . Swap 4 | . 3 1 Drop . | . . . Fire 38 | . 27 11 Melee . | . . . Ram . | . . . Kick . | . . . Crush . | . . . Escape Stasis . | . . . Rewire . | . . . Trap . | . . . Miscellaneous . | . . . Route ------- -11/Scrapyard -10/Materials (discovered 4 exits: [*Mat x2] / [*Min] / *Sub) -10/Subcaves History --------- Turn | Location | Event 4 | -11/Scrapyard | Discovered new exit (range 15) 49 | -11/Scrapyard | Entered Materials 307 | -10/Materials | Discovered new exit (range 3) 308 | -10/Materials | Build established: Mutant 561 | -10/Materials | Discovered new exit (range 10) 686 | -10/Materials | Discovered new exit (range 9) 798 | -10/Materials | Discovered new exit (range 5) 849 | -10/Materials | Derelicts attacked the area 921 | -10/Materials | Core integrity fell below 50% 1011 | -10/Materials | Entered Subcaves 1407 | -10/Subcaves | Visited Clippyterm 1414 | -10/Subcaves | Learned Research security intel 1414 | -10/Subcaves | Learned Factory emergency access door positions 1493 | -10/Subcaves | A swath of the cavern ceiling suddenly collapsed 1747 | -10/Subcaves | A swath of the cavern ceiling suddenly collapsed 2368 | -10/Subcaves | Core integrity fell below 20% 2793 | -10/Subcaves | Destroyed by Y-45 Defender with Heavy Assault Rifle Last Messages --------------- It looks like you're after the notorious thief from 0b1. I don't know where they are, but my data indicates that someone they're looking for is frequently seen in Scraptown. 2O-W6E(z): "She is not going to be happy we haven't found any suitable candidates yet." A swath of the cavern ceiling suddenly collapses. Triggered Piercing Trap. Spikes shoot up from the floor. Critical hit (Impale). Grenade Launcher destroyed. YG-4A6(u) tweaks Twisted Machinery. Acquired derelict log, extracted data. World map updated: -9/Materials. YG-4A6(u) tweaks Twisted Machinery. Lgt. Treads destroyed. Particle Gun destroyed. Acquired Enh. Flamer. Acquired Spk. Treads. Map ----- +----------------------------------------------------+ | ?????????????????????????????????????????????????? | | ?????????????????????????????????????????????????? | | ?????????????????????????????????????????????????? | | ?????????????????????????????????????????????????? | | ?????????????????????????????????????????????????? | | ?????????????????????????????????????????????????? | | ?????????????????????????????????????????????????? | | ?????????????????????????????????????????????????? | | ?????????????????????????????????????????????????? | | ?????????????????????????????????????????????????? | | ?????????????????????????????????????????????????? | | ????????###??????????????????????????????????????? | | ????????###???????????????????????###????????????? | | ????????# ??????????????????????? ##????????????? | | ??????????? ????????????????????? ????????????? | | ??????????? ###??????????????? ??????????????? | | ????????????? ###?????????????? #######?????????? | | ?????## ??? ##??????????? #######?????????? | | ?????## ??? ##????????? #< ##?????????? | | ?????## ?## ##??????### ##?????????? | | ?????????? # ########## ##?????????? | | ??????????### # ######## ##?????????? | | ??????????## Y ### ##???????????????? | | ?????????### ###???????????????? | | ?????????## ## ###????????????????? | | ?????????## #### @ ###????????????????? | | ?????????## ### ##### ###????????????????? | | ?????????######## ??### ####???????????????? | | ?????????###??#### ??### ### ???####???????? | | ???????????????#### ?## ###???####???????? | | ????????????????#### ?##### ##??? ##???????? | | ??????????????#######?##### ##?? ##???????? | | ?????????????############## #### ##???????? | | ????????????#### ####### ##### ##???????? | | ????????????### ## ### ## #### ###???????? | | ????????????## ## ## ###???????? | | ????????????## ##???????? | | ????????????## ##???????? | | ????????????## ###???????? | | ????????????## ## ###????????? | | ????????????####### ## ###????????? | | ????????????###### ### ##?????????? | | ?????????????##### ## ###?????????? | | ?????????????## ## #####????????? | | ?????????????### ####### ### ##????????? | | ?????????????### ######### ### ##????????? | | ??????????????## ## #### #### ####??????? | | ??????????????## ####### ## ####??????? | | ??????????????## ###### ###?????? | | ?????????????## ????## ### ##?????? | +----------------------------------------------------+ Best States ------------- Heat Dissipation 25 Energy Generation 10 Energy Capacity 125 Matter Stores 300 Matter Capacity 300 Sight Range 16 Terrain Scan Density 10 Evasion (%) 50 Recoil Reduction 2 Item Schematics ----------------- None Robot Schematics ------------------ None Fabricated ------------ Nothing Alien Tech Used ----------------- None Achievements -------------- None Challenges ------------ None Game ------ Seed FireNovaFilter Manual? 0 Play Time 00:20:50 Cumulative 6.0 hours Start 2024.08.26 @ 16:09:30 End 2024.08.26 @ 16:28:39 Sessions 1 Manual Loads 0 Difficulty Rogue Special Mode None Game No. 18 Rogue 18 Adventurer 0 Explorer 0 Win Type - Total 0 Types 0/0/0/0/0/0/0/0/0 Lore% 2 Gallery% 10 Achievement% 12 Wizard Run 0 Options --------- Layout 1 ASCII 0 Keyboard 0 Movement Mouse Keybinds 0 Fullscreen 1 Font 24/Smallcaps Map View 50x35 Zoom Use 0% Tactical HUD 0 Map Filters NONE Filters NONE Steam 1 RUN: 8641227f-47d4-4780-be82-5a55391f87a1